bitfinex/quotes_ETHUSD_20250629
["timestamp","ask_amount","ask_price","bid_price","bid_amount"]
[1751201356436,4.28117409,2452.2,2451.9,6.606]
[1751201357070,0.2032,2452.2,2451.9,6.606]
[1751201358375,0.2032,2452.2,2451.9,10.68444743]
[1751201358668,0.2032,2452.2,2452.0,4.07829737]
[1751201358839,0.2032,2452.2,2452.0,0.7677]
[1751201359038,0.2032,2452.2,2452.0,4.84593328]
[1751201359235,0.2032,2452.2,2452.1,4.0781371]
[1751201359471,0.2052,2452.5,2452.2,4.07788451]
[1751201359669,0.2052,2452.5,2452.1,0.2032]
[1751201359670,10.2052,2452.5,2452.1,4.28121076]
[1751201359839,10.2052,2452.5,2452.3,6.604]
[1751201360040,0.2052,2452.5,2452.3,6.604]
[1751201361369,0.2052,2452.5,2452.3,10.68176328]
[1751201361736,0.2052,2452.5,2452.3,6.604]
[1751201361939,0.2052,2452.5,2452.3,10.68178008]
[1751201362170,0.2052,2452.5,2452.3,11.49228008]
[1751201363352,0.002,2452.5,2452.4,4.07763823]
[1751201363659,0.002,2452.5,2452.4,5.09133823]
[1751201368979,0.002,2452.5,2452.4,1.0137]
[1751201369483,0.002,2452.5,2452.4,5.09133823]
[1751201370266,0.002,2452.5,2452.4,6.80880051]
[1751201371874,0.002,2452.5,2452.4,13.41180051]
[1751201375493,0.002,2452.5,2452.4,11.69433823]
[1751201394895,0.002,2452.5,2452.4,10.88183823]
[1751201400025,0.002,2452.5,2452.4,4.28083823]
[1751201400324,0.002,2452.5,2452.4,10.88183823]
[1751201402546,0.002,2452.5,2452.4,6.8042]
[1751201403245,0.002,2452.5,2452.4,0.2032]
[1751201403547,0.002,2452.5,2452.4,6.8042]
[1751201404251,0.002,2452.5,2452.4,10.88183823]
[1751201404418,0.002,2452.5,2452.4,0.2032]
[1751201404813,0.002,2452.5,2452.4,6.8042]
[1751201406263,0.002,2452.5,2452.4,10.88183823]
[1751201407159,0.002,2452.5,2452.4,6.8042]
[1751201407663,0.002,2452.5,2452.4,10.88183823]
[1751201407960,0.002,2452.5,2452.4,6.8042]
[1751201410155,0.002,2452.5,2452.4,10.88183823]
[1751201418067,0.002,2452.5,2452.4,10.88083823]
[1751201419859,0.002,2452.5,2452.4,4.28083823]
[1751201420064,0.002,2452.5,2452.4,10.88083823]
[1751201423683,0.002,2452.5,2452.4,13.12740067]
[1751201440100,0.002,2452.5,2452.4,5.77670067]
[1751201440400,0.002,2452.5,2452.4,10.87883823]
[1751201448904,0.002,2452.5,2452.4,6.8012]
[1751201449102,0.002,2452.5,2452.4,0.2032]
[1751201449272,0.002,2452.5,2452.4,6.597]
[1751201454579,0.002,2452.5,2452.3,0.2032]
[1751201454774,10.9849,2452.4,2451.9,4.28166975]
[1751201454981,10.9849,2452.4,2452.0,6.597]
[1751201455204,16.97673714,2452.4,2452.0,6.597]
[1751201455723,16.97673714,2452.4,2452.0,10.67528933]
[1751201456218,12.89908829,2452.4,2452.1,4.07812241]
[1751201456408,10.9849,2452.4,2452.2,6.597]
[1751201457320,10.0,2452.2,2451.6,4.07884604]
[1751201457532,0.7833,2452.1,2451.8,0.2032]
[1751201457825,10.7833,2452.1,2451.8,0.2032]
[1751201458517,10.7833,2452.1,2451.8,4.28182819]
[1751201458813,0.7833,2452.1,2451.8,4.28182819]
[1751201459032,10.7833,2452.1,2451.9,6.597]
[1751201460623,0.7833,2452.1,2451.9,6.597]
[1751201460993,0.7833,2452.1,2451.9,10.67539257]
[1751201461197,0.2032,2452.2,2451.9,10.67539257]
[1751201461724,10.0,2452.4,2452.0,4.07816384]
[1751201461922,10.9885,2452.5,2452.1,4.07813677]
[1751201462123,0.2052,2452.5,2452.2,10.6749708]
[1751201462504,0.2052,2452.5,2452.2,6.597]
[1751201463221,10.0,2452.4,2452.2,6.597]
[1751201463430,14.07764493,2452.4,2452.2,6.597]
[1751201464703,16.8662648,2452.4,2452.0,0.2032]
[1751201464891,16.8662648,2452.4,2452.1,6.597]
[1751201465086,10.0,2452.2,2452.0,0.2032]
[1751201465292,10.0,2452.2,2452.1,6.597]
[1751201465488,10.0,2452.2,2452.0,0.2032]
[1751201465489,4.07807329,2452.2,2452.0,0.2032]
[1751201465722,4.76474261,2452.2,2452.0,6.596]
[1751201465923,10.0,2452.1,2452.0,6.596]
[1751201468046,10.7833,2452.1,2452.0,6.596]
[1751201469029,10.0,2452.1,2452.0,6.596]
[1751201469196,10.0,2452.1,2452.0,6.7992]
[1751201469930,10.0,2452.1,2452.0,10.87750342]
[1751201470522,10.0,2452.1,2452.0,6.7992]
[1751201476626,10.0,2452.1,2452.0,10.87750342]
[1751201480364,10.0,2452.1,2452.0,12.45015724]
[1751201482463,10.0,2452.1,2452.0,10.87750342]
[1751201485771,10.0,2452.1,2452.0,6.7992]
[1751201486657,10.0,2452.1,2452.0,10.87750342]
[1751201489174,10.0,2452.1,2452.0,6.594]
[1751201489686,10.0,2452.1,2452.0,10.67230342]
[1751201491291,10.0,2452.1,2452.0,12.16769717]
[1751201491790,10.0,2452.1,2452.0,6.594]
[1751201493899,10.0,2452.0,2451.9,4.2815757]
[1751201494099,10.819,2452.3,2451.9,10.8755757]
[1751201494758,0.819,2452.3,2452.0,4.07829402]
[1751201495053,0.819,2452.3,2452.1,6.594]
[1751201497419,10.0,2452.4,2452.1,6.594]
[1751201497717,11.695,2452.5,2452.2,4.07796983]
[1751201497918,11.695,2452.5,2452.1,10.87524485]
[1751201498620,11.695,2452.5,2452.2,4.07792638]
[1751201498828,13.37464026,2452.5,2452.1,10.87522743]
[1751201499003,13.37464026,2452.5,2452.2,4.0779538]
[1751201499496,13.37464026,2452.5,2452.1,10.87524949]
[1751201501621,13.37464026,2452.5,2452.2,6.593]
[1751201504130,0.9,2452.3,2452.2,6.593]
[1751201516646,10.0,2452.2,2452.1,0.2032]
[1751201516805,10.0,2452.2,2452.1,6.591]
[1751201519338,10.0,2452.2,2452.0,6.7942]
[1751201520739,14.07798806,2452.2,2452.0,0.2032]
[1751201520942,14.0781371,2452.1,2451.6,4.07888895]
[1751201521150,14.0781371,2452.1,2451.8,6.7932]
[1751201522260,16.08417888,2452.1,2451.8,6.7932]
[1751201523052,4.07831761,2452.0,2451.8,6.7932]
[1751201524748,4.07846975,2451.9,2451.8,0.2032]
[1751201524954,4.07846975,2451.9,2451.7,6.59]
[1751201526453,4.0786361,2451.8,2451.7,6.59]
[1751201526963,4.0786361,2451.8,2451.5,0.2032]
[1751201527164,4.0786361,2451.8,2451.6,6.59]
[1751201527660,4.0786361,2451.8,2451.5,6.7932]
[1751201529572,4.0786361,2451.8,2451.5,0.2032]
[1751201529934,4.0786361,2451.8,2451.5,6.7932]
[1751201531774,4.07855091,2451.9,2451.5,6.7932]
[1751201532458,0.9,2451.8,2451.5,6.7932]
[1751201533667,0.9,2451.8,2451.5,10.87232024]
[1751201534744,0.9,2451.8,2451.5,4.28232024]
[1751201534967,0.9,2451.8,2451.6,6.589]
[1751201535155,0.9,2451.8,2451.5,4.28232024]
[1751201535356,0.9,2451.8,2451.6,6.589]
[1751201535776,0.9,2451.8,2451.5,0.2032]
[1751201535956,0.9,2451.8,2451.6,6.589]
[1751201536157,0.9,2451.8,2451.5,0.2032]
[1751201536344,0.9,2451.8,2451.5,6.7922]
[1751201537145,0.9,2451.8,2451.5,10.87132286]
[1751201538285,0.9,2451.8,2451.6,4.0789476]
[1751201538581,0.9,2451.8,2451.7,4.28200246]
[1751201538786,10.0,2452.1,2451.9,4.07836871]
[1751201539295,10.0,2452.1,2451.9,4.28156871]
[1751201539583,10.0,2452.1,2452.0,4.07830342]
[1751201540076,0.2032,2452.4,2452.1,4.07804475]
[1751201540547,0.2032,2452.4,2452.1,10.66704475]
[1751201541965,0.2032,2452.4,2452.2,4.07795978]
[1751201549391,0.2032,2452.4,2452.3,4.07780451]
[1751201549570,0.002,2452.5,2452.3,4.28100451]
[1751201550787,0.002,2452.5,2452.4,10.66463823]
[1751201551000,0.002,2452.5,2452.4,10.86783823]
[1751201551288,0.002,2452.5,2452.4,11.68283823]
[1751201551591,0.002,2452.5,2452.4,13.41632575]
[1751201578643,0.002,2452.5,2452.4,6.82932575]
[1751201578860,0.002,2452.5,2452.4,15.09632575]
[1751201592257,0.002,2452.5,2452.4,15.64632575]
[1751201593248,0.002,2452.5,2452.4,7.37932575]
[1751201593440,0.002,2452.5,2452.4,15.64432575]
[1751201598472,0.002,2452.5,2452.4,15.64232575]
[1751201603641,0.002,2452.5,2452.4,6.82932575]
[1751201603841,0.002,2452.5,2452.4,7.69732575]
[1751201604075,0.002,2452.5,2452.4,14.27632575]
[1751201606380,0.002,2452.5,2452.4,6.01432575]
[1751201606570,0.002,2452.5,2452.4,12.59332575]
[1751201613493,0.002,2452.5,2452.4,13.37982575]
[1751201627808,0.002,2452.5,2452.4,23.37982575]
[1751201634521,0.002,2452.5,2452.4,23.92982575]
[1751201635809,0.002,2452.5,2452.4,24.32758662]
[1751201640619,0.002,2453.1,2452.4,24.32758662]
[1751201640620,10.0,2453.9,2453.5,4.07569392]
[1751201640813,14.07506882,2454.0,2453.6,6.575]
[1751201641013,14.07506882,2454.0,2453.6,6.7782]
[1751201642100,14.07506882,2454.0,2453.6,10.85383303]
[1751201642797,14.07506882,2454.0,2453.6,6.7782]
[1751201643108,14.07506882,2454.0,2453.1,5.75740274]
[1751201643109,10.55,2453.8,2453.7,6.575]
[1751201643633,11.3175,2453.8,2453.7,6.575]
[1751201643799,15.39281176,2453.8,2453.7,6.575]
[1751201644194,0.7675,2453.6,2453.4,0.2032]
[1751201644430,0.7675,2453.6,2453.5,6.575]
[1751201644596,1.87851531,2453.6,2453.5,6.575]
[1751201645513,11.11101531,2453.6,2453.4,0.2032]
[1751201645727,0.7675,2453.5,2453.4,0.2032]
[1751201646026,0.7675,2453.5,2453.4,6.7782]
[1751201647568,0.7675,2453.5,2453.4,10.85417619]
[1751201653446,0.7675,2453.5,2453.4,10.85317619]
[1751201655359,0.7675,2453.5,2453.4,6.7772]
[1751201655547,0.7675,2453.5,2453.4,10.85317619]
[1751201655870,0.7675,2453.5,2453.4,6.7772]
[1751201656761,0.7675,2453.5,2453.4,10.85317619]
[1751201661582,0.7675,2453.5,2453.4,4.27917619]
[1751201661750,0.7675,2453.5,2453.4,10.85217619]
[1751201668502,1.3588,2453.7,2453.6,4.07552589]
[1751201668792,1.3588,2453.7,2453.6,10.64852589]
[1751201671885,0.8088,2453.9,2453.7,4.07539559]
[1751201672098,0.55,2453.8,2453.7,4.07539559]
[1751201672394,0.55,2453.8,2453.7,10.64739559]
[1751201674000,1.3766,2453.8,2453.6,4.27877018]
[1751201674185,1.3766,2453.8,2453.7,6.572]
[1751201675507,11.3766,2453.8,2453.7,6.572]
[1751201675675,13.9420953,2453.8,2453.7,6.572]
[1751201676007,13.1154953,2453.8,2453.7,6.572]
[1751201676588,13.9420953,2453.8,2453.7,6.572]
[1751201677499,0.55,2453.6,2453.3,4.07609179]
[1751201677694,0.55,2453.6,2453.4,4.07595612]
[1751201677894,0.55,2453.6,2453.4,10.64795612]
[1751201679283,0.55,2453.6,2453.5,6.572]
[1751201680408,0.55,2453.6,2453.3,4.27931108]
[1751201680709,1.3766,2453.5,2453.4,6.572]
[1751201681999,1.3766,2453.5,2453.4,10.64797619]
[1751201683692,0.55,2453.5,2453.4,10.64797619]
[1751201688331,0.55,2453.8,2453.6,4.07551327]
[1751201688692,0.55,2453.8,2453.6,10.64651327]
[1751201688892,0.55,2453.8,2453.7,4.07547784]
[1751201689093,0.55,2453.8,2453.6,10.64655584]
[1751201689530,0.55,2453.8,2453.7,4.07547784]
[1751201692119,0.55,2453.8,2453.6,10.6465758]
[1751201702741,0.55,2453.8,2453.6,6.571]
[1751201702936,0.55,2453.8,2453.6,10.64663506]
[1751201707644,0.55,2453.8,2453.7,4.07547784]
[1751201715636,0.55,2453.9,2453.8,4.07531176]
[1751201716347,0.55,2453.9,2453.8,10.64431176]
[1751201721477,0.2032,2454.2,2454.1,4.07481357]
[1751201721635,1.0044,2454.7,2454.4,4.07421519]
[1751201721836,1.0044,2454.7,2454.5,6.568]
[1751201722041,0.55,2454.6,2454.5,6.568]
[1751201722239,0.2052,2454.7,2454.5,7.3539]
[1751201722585,0.002,2454.7,2454.6,4.07398354]
[1751201722771,0.002,2454.7,2454.6,4.85988354]
[1751201722937,0.002,2454.7,2454.6,6.63360468]
[1751201730571,0.002,2454.7,2454.6,2.55962114]
[1751201730874,0.002,2454.7,2454.6,5.06308354]
[1751201732178,0.002,2454.7,2454.6,0.9891]
[1751201732481,0.002,2454.7,2454.6,10.84318354]
[1751201734586,0.002,2454.7,2454.6,10.84218354]
[1751201734763,0.002,2454.7,2454.6,6.7682]
[1751201735063,0.002,2454.7,2454.6,8.34073248]
[1751201735584,0.55,2454.6,2454.2,4.83567238]
[1751201735778,0.55,2454.6,2454.3,6.7682]
[1751201735968,0.55,2454.6,2454.3,4.27766015]
[1751201736177,0.55,2454.6,2454.4,6.565]
[1751201736766,4.62401035,2454.6,2454.3,0.2032]
[1751201737061,4.62401035,2454.6,2454.5,6.565]
[1751201738389,0.552,2454.7,2454.5,6.565]
[1751201738994,10.552,2454.7,2454.5,6.565]
[1751201739995,0.002,2454.7,2454.6,6.565]
[1751201740291,0.002,2454.7,2454.6,6.7682]
[1751201745902,10.002,2454.7,2454.6,6.7672]
[1751201748126,0.002,2454.7,2454.6,6.7672]
[1751201749687,0.002,2454.7,2454.6,0.2032]
[1751201749904,0.002,2454.7,2454.6,6.7672]
[1751201754248,0.002,2454.7,2454.6,10.84118354]
[1751201757856,0.002,2454.7,2454.6,12.4081351]
[1751201765341,0.002,2454.7,2454.6,5.8441351]
[1751201765669,0.002,2454.7,2454.6,12.4071351]
[1751201766569,0.002,2454.7,2454.6,6.7662]
[1751201769890,0.002,2454.7,2454.6,10.84018354]
[1751201770708,0.002,2454.7,2454.6,6.7662]
[1751201773495,0.002,2454.7,2454.6,10.84018354]
[1751201776499,0.002,2454.7,2454.6,4.27718354]
[1751201776798,0.002,2454.7,2454.6,10.83918354]
[1751201779804,0.002,2454.7,2454.6,6.7652]
[1751201780102,0.002,2454.7,2454.6,10.83918354]
[1751201789983,0.002,2454.7,2454.6,6.7652]
[1751201790918,0.002,2454.7,2454.6,10.83918354]
[1751201799450,0.002,2454.7,2454.6,12.33051611]
[1751201800352,0.002,2454.7,2454.6,10.83918354]
[1751201800953,0.002,2454.7,2454.6,6.7652]
[1751201803661,0.002,2454.7,2454.6,10.83918354]
[1751201803953,0.002,2454.7,2454.6,6.7652]
[1751201804157,0.002,2454.7,2454.6,10.83918354]
[1751201814269,0.002,2454.7,2454.6,6.7652]
[1751201816691,0.002,2454.7,2454.6,10.83918354]
[1751201819788,0.002,2454.7,2454.6,6.7652]
[1751201820093,0.002,2454.7,2454.6,10.83918354]
[1751201833582,0.002,2454.7,2454.6,12.40673618]
[1751201839796,0.002,2454.7,2454.6,13.21703618]
[1751201864901,0.002,2454.7,2454.6,1.77075264]
[1751201865097,0.002,2454.7,2454.6,10.83218354]
[1751201874010,0.7653,2454.9,2454.6,10.83218354]
[1751201874215,0.7653,2454.9,2454.7,4.07381329]
[1751201874414,0.7653,2454.9,2454.8,6.554]
[1751201879654,0.7653,2454.9,2454.6,4.27710011]
[1751201879819,0.7653,2454.9,2454.7,6.554]
[1751201880761,0.7653,2454.9,2454.7,10.62780416]
[1751201881051,0.7653,2454.9,2454.8,6.554]
[1751201881568,0.552,2455.0,2454.8,10.62763522]
[1751201883048,0.002,2455.0,2454.9,4.07348568]
[1751201888063,0.002,2455.0,2454.9,4.77816524]
[1751201889325,0.002,2455.0,2454.9,4.07348568]
[1751201909198,0.002,2455.0,2454.9,10.62548568]
[1751201911408,0.8271,2455.0,2454.9,6.552]
[1751201911710,0.8271,2455.0,2454.9,10.62548568]
[1751201912368,0.7771,2455.0,2454.9,10.62548568]
[1751201913102,0.552,2455.2,2455.0,4.07330145]
[1751201913298,0.552,2455.2,2455.1,6.552]
[1751201913765,0.002,2455.2,2455.1,10.62515384]
[1751201914504,0.002,2455.2,2455.1,6.552]
[1751201915704,0.002,2455.2,2455.1,10.62515384]
[1751201919114,0.002,2455.2,2455.1,10.82835384]
[1751201922009,0.002,2455.2,2455.1,6.7542]
[1751201931420,0.002,2455.2,2455.1,0.2032]
[1751201931647,0.002,2455.2,2455.1,6.7532]
[1751201933040,0.002,2455.2,2454.8,1.668]
[1751201933190,0.002,2455.2,2454.9,6.7532]
[1751201934220,0.002,2455.2,2454.9,10.82662128]
[1751201941226,0.002,2455.2,2454.9,6.7532]
[1751201941795,0.002,2455.2,2454.9,10.82666155]
[1751201942738,0.002,2455.2,2455.0,4.07328278]
[1751201943032,0.002,2455.2,2455.1,6.549]
[1751201945637,0.002,2455.2,2455.1,10.62215384]
[1751201947001,0.002,2455.2,2455.1,10.82535384]
[1751201949458,0.002,2455.2,2455.1,13.17668763]
[1751201953363,0.002,2455.2,2455.1,6.62768763]
[1751201953646,0.002,2455.2,2455.1,13.17568763]
[1751201956269,0.002,2455.2,2455.1,5.84778763]
[1751201956474,0.002,2455.2,2455.1,10.82435384]
[1751201960770,0.002,2455.2,2455.1,6.7512]
[1751201961875,0.002,2455.2,2455.1,10.82435384]
[1751201962039,0.002,2455.2,2455.1,6.7502]
[1751201962467,0.002,2455.2,2455.1,10.82335384]
[1751201964269,0.002,2455.2,2455.1,6.7502]
[1751201964566,0.002,2455.2,2455.1,12.07239959]
[1751201968274,0.002,2455.2,2455.1,12.84599959]
[1751201996427,0.002,2455.2,2455.1,11.59695384]
[1751202017852,0.002,2455.2,2455.1,10.82035384]
[1751202018030,0.002,2455.2,2455.1,11.60955384]
[1751202018239,0.002,2455.2,2455.1,23.27455384]
[1751202022164,0.002,2455.2,2455.1,23.6646919]
[1751202022352,0.002,2455.2,2455.1,26.43847657]
[1751202032460,0.002,2455.2,2455.1,37.30587657]
[1751202033768,0.002,2455.2,2455.1,26.43847657]
[1751202034475,0.002,2455.2,2455.1,18.22947657]
[1751202034845,0.002,2455.2,2455.1,26.43447657]
[1751202035551,0.002,2455.2,2455.1,18.22947657]
[1751202035736,0.002,2455.2,2455.1,26.43447657]
[1751202037972,0.002,2455.2,2455.1,39.45544657]
[1751202038865,0.002,2455.2,2455.1,43.74244657]
[1751202039067,0.002,2455.2,2455.1,39.45544657]
[1751202042854,0.002,2455.2,2455.1,33.63457657]
[1751202043050,0.002,2455.2,2455.1,18.22947657]
[1751202043256,0.002,2455.2,2455.1,16.43447657]
[1751202043498,0.002,2455.2,2455.1,26.43447657]
[1751202044189,0.002,2455.2,2455.1,16.43447657]
[1751202044357,0.002,2455.2,2455.1,26.43447657]
[1751202044954,0.002,2455.2,2455.1,19.89247657]
[1751202045151,0.002,2455.2,2455.1,22.8724919]
[1751202046189,0.002,2455.2,2455.1,14.6664919]
[1751202046366,0.002,2455.2,2455.1,22.8724919]
[1751202047088,0.002,2455.2,2455.1,14.6664919]
[1751202047490,0.002,2455.2,2455.1,22.8724919]
[1751202047789,0.002,2455.2,2455.1,25.84399657]
[1751202048491,0.002,2455.2,2455.1,19.30099657]
[1751202048790,0.002,2455.2,2455.1,25.84299657]
[1751202050492,0.002,2455.2,2455.1,17.63799657]
[1751202050687,0.002,2455.2,2455.1,16.3294919]
[1751202050891,0.002,2455.2,2455.1,22.8714919]
[1751202051281,0.002,2455.2,2455.1,16.3294919]
[1751202051460,0.002,2455.2,2455.1,22.8714919]
[1751202051861,0.002,2455.2,2455.1,22.8724919]
[1751202052294,0.002,2455.2,2455.1,16.3294919]
[1751202052497,0.002,2455.2,2455.1,22.8724919]
[1751202058595,0.7552,2455.2,2455.1,6.3304919]
[1751202058795,0.7552,2455.2,2455.1,12.8724919]
[1751202059263,0.002,2455.2,2455.1,14.76705657]
[1751202059999,0.002,2455.2,2455.1,24.76705657]
[1751202063380,0.002,2455.2,2455.1,16.56105657]
[1751202063585,0.002,2455.2,2455.1,22.8754919]
[1751202064503,0.002,2455.2,2455.1,14.6664919]
[1751202064710,0.002,2455.2,2455.1,22.8754919]
[1751202066205,0.002,2455.2,2455.1,14.6664919]
[1751202066506,0.002,2455.2,2455.1,16.3304919]
[1751202066696,0.002,2455.2,2455.1,22.8764919]
[1751202067619,0.002,2455.2,2455.1,4.6664919]
[1751202067917,0.7637,2455.2,2455.1,11.2124919]
[1751202070507,0.7637,2455.2,2455.1,11.2134919]
[1751202074725,0.002,2455.2,2455.1,11.2134919]
[1751202079725,0.7941,2455.2,2455.1,11.2134919]
[1751202083026,0.002,2455.2,2455.1,11.2134919]
[1751202086839,0.002,2455.2,2455.1,4.6664919]
[1751202086997,0.7672,2455.2,2455.1,4.6664919]
[1751202087197,0.7672,2455.2,2455.1,11.2144919]
[1751202091434,0.002,2455.2,2455.1,11.2144919]
[1751202098305,0.002,2455.2,2455.1,23.77370975]
[1751202109446,0.002,2455.2,2455.1,38.29373675]
[1751202109820,0.002,2455.2,2455.1,34.72280975]
[1751202110018,0.002,2455.2,2455.1,23.77370975]
[1751202110618,0.002,2455.2,2455.1,27.90180975]
[1751202115350,0.002,2455.2,2455.1,28.45180975]
[1751202115531,0.002,2455.2,2455.1,54.32370975]
[1751202117747,0.002,2455.2,2455.1,28.66252075]
[1751202117928,0.002,2455.2,2455.1,36.87352075]
[1751202118663,0.002,2455.2,2455.1,55.98670975]
[1751202119731,0.002,2455.2,2455.1,60.63670975]
[1751202120741,0.002,2455.2,2455.1,38.43636775]
[1751202121663,0.002,2455.2,2455.1,59.92347575]
[1751202122661,0.002,2455.4,2455.3,4.83032205]
[1751202122868,0.002,2455.4,2455.3,25.39064629]
[1751202123364,0.002,2455.4,2455.3,25.59384629]
[1751202127375,0.002,2455.4,2455.3,25.90012446]
[1751202130060,0.002,2455.4,2455.3,27.56312446]
[1751202131376,0.002,2455.4,2455.3,28.11312446]
[1751202131553,0.002,2455.4,2455.3,32.76312446]
[1751202131762,0.002,2455.4,2455.3,62.76312446]
[1751202133679,0.002,2455.4,2455.3,32.76312446]
[1751202133871,0.002,2455.4,2455.3,62.76312446]
[1751202134876,0.002,2455.4,2455.3,54.55312446]
[1751202135080,0.002,2455.4,2455.3,62.76212446]
[1751202136774,0.002,2455.4,2455.3,32.76212446]
[1751202136979,0.002,2455.4,2455.3,62.76212446]
[1751202140763,0.001,2456.4,2456.3,14.07116394]
[1751202140965,0.001,2456.4,2456.3,22.28316394]
[1751202141575,0.001,2456.4,2456.3,14.07116394]
[1751202141777,0.001,2456.4,2456.3,22.28616394]
[1751202142080,0.001,2456.4,2456.3,24.52917352]
[1751202142287,0.001,2456.4,2456.3,24.52817352]
[1751202149770,0.001,2456.4,2456.3,16.31417352]
[1751202149970,0.001,2456.4,2456.3,24.52617352]
[1751202150697,0.001,2456.4,2456.3,24.72937352]
[1751202151708,0.001,2456.4,2456.3,24.73337352]
[1751202151886,0.8263,2456.4,2456.3,24.73337352]
[1751202152064,0.8263,2456.4,2456.3,4.27436394]
[1751202152265,0.8263,2456.4,2456.3,5.94236394]
[1751202152466,0.8263,2456.4,2456.3,4.27436394]
[1751202152772,0.8263,2456.4,2456.3,10.82536394]
[1751202153598,0.8263,2456.4,2456.3,4.27436394]
[1751202153778,0.8263,2456.4,2456.3,10.82436394]
[1751202183661,0.8263,2456.4,2456.3,4.27436394]
[1751202183827,0.8263,2456.4,2456.3,10.61816394]
[1751202186450,0.8263,2456.4,2456.3,4.07116394]
[1751202186654,0.7533,2456.2,2456.1,4.07141359]
[1751202186855,0.7533,2456.2,2456.1,6.546]
[1751202187427,0.55,2456.1,2456.0,0.2032]
[1751202187746,1.3585,2456.1,2456.0,10.61966123]
[1751202187946,1.3585,2456.1,2456.0,6.548]
[1751202188442,0.8085,2455.9,2455.8,0.2032]
[1751202188660,1.3585,2455.9,2455.8,0.2032]
[1751202188823,1.3585,2455.9,2455.8,6.551]
[1751202189028,1.5617,2455.9,2455.8,6.551]
[1751202189466,0.55,2455.8,2455.7,4.0721526]
[1751202189757,0.55,2455.8,2455.7,10.6241526]
[1751202189922,0.55,2455.8,2455.7,6.552]
[1751202191069,0.55,2455.8,2455.7,10.62415865]
[1751202191244,1.0117,2455.9,2455.8,4.07199283]
[1751202191245,0.8085,2455.9,2455.8,4.07199283]
[1751202194040,0.8085,2456.1,2456.0,4.07166123]
[1751202194372,1.3585,2456.1,2456.0,10.62366123]
[1751202195475,0.8085,2456.1,2456.0,10.62366123]
[1751202195641,1.3585,2456.3,2456.2,4.07126303]
[1751202195841,1.3585,2456.3,2456.2,10.62526303]
[1751202196048,2.51497,2456.3,2456.2,10.62526303]
[1751202197687,2.51497,2456.3,2456.2,6.554]
[1751202199077,2.51497,2456.3,2456.2,10.62532969]
[1751202199446,0.551,2456.4,2456.3,4.07116394]
[1751202199777,0.551,2456.4,2456.2,10.62524013]
[1751202202477,0.001,2456.4,2456.3,4.07116394]
[1751202202682,0.001,2456.4,2456.3,4.27436394]
[1751202208683,0.001,2456.4,2456.1,0.8078]
[1751202208684,1.3816,2456.4,2456.1,4.07139287]
[1751202208986,1.3816,2456.4,2456.3,6.552]
[1751202210084,1.3816,2456.4,2456.1,4.27459287]
[1751202210288,6.01857024,2456.4,2456.2,6.555]
[1751202211271,4.62126111,2456.3,2455.8,4.07191356]
[1751202211498,0.8306,2456.2,2455.9,6.7582]
[1751202212258,0.8306,2456.2,2455.9,0.2032]
[1751202212493,4.90195989,2456.2,2456.0,6.554]
[1751202212692,5.87468224,2456.2,2456.0,6.554]
[1751202212872,5.87468224,2456.2,2456.0,6.555]
[1751202213269,1.80332235,2456.2,2456.0,6.555]
[1751202213582,0.8306,2456.2,2456.0,6.555]
[1751202213785,4.90194788,2456.2,2456.0,6.555]
[1751202213988,0.8306,2456.2,2456.0,6.555]
[1751202217894,0.8306,2456.2,2456.0,10.6266524]
[1751202218475,0.8306,2456.2,2455.9,4.27494149]
[1751202218663,0.8306,2456.2,2456.0,6.555]
[1751202219403,1.80330601,2456.2,2456.0,6.555]
[1751202222408,0.8306,2456.2,2456.0,6.555]
[1751202225108,4.90194732,2456.2,2456.0,6.555]
[1751202225803,4.90194732,2456.2,2455.9,0.2032]
[1751202225987,0.55,2456.1,2455.9,6.7562]
[1751202226188,1.5226535,2456.1,2455.9,6.7562]
[1751202226504,0.55,2456.1,2455.9,6.7552]
[1751202228011,0.55,2456.1,2455.7,4.07215785]
[1751202228012,0.55,2456.1,2455.8,6.554]
[1751202228208,0.7532,2456.1,2455.8,6.554]
[1751202228713,0.7532,2456.1,2455.8,10.6259827]
[1751202229102,0.7032,2456.1,2455.8,6.554]
[1751202229299,0.7032,2456.1,2455.8,4.07199065]
[1751202229495,0.7032,2456.1,2455.9,10.6248188]
[1751202229681,0.7032,2456.1,2455.9,6.553]
[1751202230281,4.82313824,2456.4,2455.9,10.62473818]
[1751202230510,0.2032,2456.2,2455.9,10.62473818]
[1751202231211,4.07176065,2456.0,2455.8,0.2032]
[1751202231400,4.07176065,2456.0,2455.6,0.2032]
[1751202231606,4.07176065,2456.0,2455.7,6.555]
[1751202231795,5.03652774,2456.0,2455.7,6.555]
[1751202232696,0.96476709,2456.0,2455.7,10.62715331]
[1751202232896,5.57586756,2456.1,2455.8,6.555]
[1751202234016,5.57586756,2456.1,2455.7,4.07215331]
[1751202234223,5.57586756,2456.1,2455.8,6.555]
[1751202235715,5.57589046,2456.1,2455.8,6.555]
[1751202238021,1.5043,2456.1,2455.8,6.555]
[1751202238316,0.7532,2456.2,2455.8,10.83016538]
[1751202239822,0.7532,2456.2,2455.9,4.07177845]
[1751202239987,2.48064834,2456.2,2455.9,4.07177845]
[1751202240187,2.48064834,2456.2,2455.8,10.83010099]
[1751202241190,2.48064834,2456.2,2455.9,4.07180394]
[1751202241823,2.48064834,2456.2,2455.8,10.83009527]